fUST/lending_fUST_20251128
["ID","MTS","AMOUNT","RATE_DAILY","PERIOD"]
[395018410,1764337857292,-500.0,0.00019452,2]
[395018411,1764337857301,-500.0,0.00019452,2]
[395018412,1764337857310,-500.0,0.00019452,2]
[395018413,1764337857319,-500.0,0.00019452,2]
[395018414,1764337857328,-500.0,0.00019452,2]
[395018415,1764337857337,-500.0,0.00019452,2]
[395018416,1764337857347,-500.0,0.00019452,2]
[395018417,1764337857356,-2187.81,0.00019452,2]
[395018418,1764337857365,-500.0,0.00019452,2]
[395018419,1764337857374,-1138.53,0.00019452,2]
[395018420,1764337857384,-500.0,0.00019452,2]
[395018421,1764337857393,-662.84,0.00019452,2]
[395018422,1764337857403,-500.0,0.00019452,2]
[395018423,1764337857412,-500.0,0.00019452,2]
[395018424,1764337857421,-500.0,0.00019452,2]
[395018425,1764337857430,-500.0,0.00019452,2]
[395018426,1764337857439,-512.84491875,0.00019452,2]
[395018427,1764337857449,-500.0,0.00019452,2]
[395018428,1764337857458,-1325.39,0.00019452,2]
[395018429,1764337857467,-500.0,0.00019452,2]
[395018430,1764337857477,-500.0,0.00019452,2]
[395018431,1764337857485,-500.0,0.00019452,2]
[395018432,1764337857495,-500.0,0.00019452,2]
[395018433,1764337857504,-308.6504957,0.00019452,2]
[395018434,1764337857512,-990.36,0.00019452,2]
[395018435,1764337857521,-500.0,0.00019452,2]
[395018436,1764337857530,-500.0,0.00019452,2]
[395018437,1764337857538,-500.0,0.00019452,2]
[395018438,1764337857547,-500.0,0.00019452,2]
[395018439,1764337857556,-209.47569619,0.00019452,2]
[395018440,1764337897882,548.254826,0.0002,30]
[395018441,1764338017859,200.0,0.0002,30]
[395018442,1764338020260,200.0,0.0002,30]
[395018443,1764338022528,200.0,0.0002,30]
[395018456,1764338733181,917.42300156,0.0002,120]
[395018467,1764339031622,-222.0,8.514e-05,2]
[395018468,1764339031633,-222.0,8.6e-05,2]
[395018470,1764339031642,-150.0,8.643e-05,2]
[395018472,1764339031652,-900.57525229,8.907e-05,2]
[395018474,1764339031662,-716.33149903,9.107e-05,2]
[395018476,1764339031671,-38000.0,0.0001,2]
[395018478,1764339031681,-900.57525229,0.00010561,2]
[395018480,1764339031690,-177.0,0.00010643,2]
[395018482,1764339031699,-3313.5042313,0.00010959,2]
[395018484,1764339031709,-160.0,0.00011168,2]
[395018487,1764339031719,-353.59244258,0.00011168,2]
[395018489,1764339031728,-277.56510365,0.00012115,2]
[395018491,1764339031737,-151.0,0.000122,2]
[395018494,1764339031746,-194.72792766,0.00012208,2]
[395018497,1764339031756,-566.64176273,0.00012213,2]
[395018500,1764339031765,-566.64176273,0.00012213,2]
[395018503,1764339031774,-566.64176273,0.00012213,2]
[395018505,1764339031783,-566.64176273,0.00012213,2]
[395018508,1764339031792,-223.54781241,0.00012213,2]
[395018512,1764339031802,-566.64176273,0.00012213,2]
[395018515,1764339031812,-566.64176273,0.00012213,2]
[395018517,1764339031821,-566.64176273,0.00012213,2]
[395018520,1764339031831,-566.64176273,0.00012213,2]
[395018524,1764339031840,-566.64176273,0.00012213,2]
[395018527,1764339031849,-566.64176273,0.00012213,2]
[395018530,1764339031859,-566.64176273,0.00012213,2]
[395018533,1764339031870,-566.64176273,0.00012213,2]
[395018536,1764339031880,-566.64176273,0.00012213,2]
[395018539,1764339031894,-566.64176273,0.00012213,2]
[395018542,1764339031903,-566.64176273,0.00012213,2]
[395018544,1764339031912,-566.90331551,0.00012213,2]
[395018546,1764339031921,-461.97783477,0.00012213,2]
[395018549,1764339031933,-38.02216523,0.00012213,2]
[395018551,1764339031942,-500.0,0.00012213,2]
[395018553,1764339031952,-500.0,0.00012213,2]
[395018555,1764339031962,-500.0,0.00012213,2]
[395018557,1764339031971,-318.56804184,0.00012213,2]
[395018559,1764339031983,-181.43195816,0.00012213,2]
[395018561,1764339031992,-500.0,0.00012213,2]
[395018563,1764339032001,-500.0,0.00012213,2]
[395018565,1764339032010,-500.0,0.00012213,2]
[395018567,1764339032023,-500.0,0.00012213,2]
[395018569,1764339032032,-500.0,0.00012213,2]
[395018571,1764339032041,-500.0,0.00012213,2]
[395018573,1764339032051,-500.0,0.00012213,2]
[395018575,1764339032060,-500.0,0.00012213,2]
[395018577,1764339032069,-500.0,0.00012213,2]
[395018579,1764339032078,-500.0,0.00012213,2]
[395018581,1764339032088,-211.89506407,0.00012213,2]
[395018583,1764339032097,-500.0,0.00012213,2]
[395018585,1764339032106,-253.16210005,0.00012213,2]
[395018587,1764339032115,-500.0,0.00012213,2]
[395018589,1764339032124,-500.0,0.00012213,2]
[395018591,1764339032136,-500.0,0.00012213,2]
[395018593,1764339032145,-500.0,0.00012213,2]
[395018595,1764339032154,-500.0,0.00012213,2]
[395018597,1764339032164,-500.0,0.00012213,2]
[395018599,1764339032173,-500.0,0.00012213,2]
[395018601,1764339032182,-500.0,0.00012213,2]
[395018603,1764339032191,-500.0,0.00012213,2]
[395018606,1764339032201,-500.0,0.00012213,2]
[395018608,1764339032210,-500.0,0.00012213,2]
[395018610,1764339032219,-500.0,0.00012213,2]
[395018612,1764339032228,-500.0,0.00012213,2]
[395018614,1764339032237,-500.0,0.00012213,2]
[395018616,1764339032246,-500.0,0.00012213,2]
[395018618,1764339032255,-500.0,0.00012213,2]
[395018620,1764339032267,-500.0,0.00012213,2]
[395018621,1764339032278,-500.0,0.00012213,2]
[395018624,1764339032289,-500.0,0.00012213,2]
[395018626,1764339032298,-500.0,0.00012213,2]
[395018627,1764339032307,-500.0,0.00012213,2]
[395018630,1764339032317,-500.0,0.00012213,2]
[395018632,1764339032327,-234.41524684,0.00012213,2]
[395018634,1764339032336,-500.0,0.00012213,2]
[395018636,1764339032346,-500.0,0.00012213,2]
[395018638,1764339032358,-500.0,0.00012213,2]
[395018640,1764339032368,-500.0,0.00012213,2]
[395018667,1764339032637,-500.0,0.00012213,2]
[395018669,1764339032649,-500.0,0.00012213,2]
[395018671,1764339032659,-500.0,0.00012213,2]
[395018673,1764339032669,-500.0,0.00012213,2]
[395018676,1764339032679,-500.0,0.00012213,2]
[395018678,1764339032688,-500.0,0.00012213,2]
[395018680,1764339032698,-500.0,0.00012213,2]
[395018681,1764339032707,-500.0,0.00012213,2]
[395018683,1764339032717,-381.5031567,0.00012213,2]
[395018733,1764339037547,-301.25937483,0.00011168,2]
[395018734,1764339037559,-3068.87568946,0.00011168,2]
[395018814,1764339045726,-24455.74855179,0.00011168,2]
[395018817,1764339127384,4001.0,0.0002,30]
[395018818,1764339128889,161.85415,0.0002,30]
[395018819,1764339129173,161.85415,0.0002,30]
[395018820,1764339145418,3999.0,0.0002,30]
[395018821,1764339157964,1057.440939,0.0002,30]
[395018822,1764339158289,1057.440939,0.0002,30]
[395018823,1764339158806,1057.440939,0.0002,30]
[395018824,1764339159131,1057.440939,0.0002,30]
[395018825,1764339159439,1057.440939,0.0002,30]
[395018826,1764339180320,5000.0,0.0002,30]
[395018827,1764339208433,4001.0,0.0002,30]
[395018877,1764340231830,-540.77734106,8.818e-05,2]
[395018879,1764340231839,-150.0,8.863e-05,2]
[395018881,1764340231850,-488.20145343,8.907e-05,2]
[395018884,1764340231862,-52.57588763,8.907e-05,2]
[395018886,1764340231871,-540.77734106,0.00010242,2]
[395018888,1764340231880,-177.0,0.00010863,2]
[395018890,1764340231890,-164.66666668,0.00011012,2]
[395018892,1764340231900,-353.59244258,0.00011194,2]
[395018894,1764340231909,-164.66666666,0.00011512,2]
[395018896,1764340231918,-540.77734106,0.00011576,2]
[395018898,1764340231927,-300.0,0.00011635,2]
[395018900,1764340231937,-7452.140204,0.00011636,2]
[395018902,1764340231946,-500.0,0.00011999,2]
[395018904,1764340231955,-500.0,0.00011999,2]
[395018906,1764340231966,-500.0,0.00011999,2]
[395018908,1764340231975,-500.0,0.00011999,2]
[395018910,1764340231984,-500.0,0.00011999,2]
[395018912,1764340231995,-526.04613854,0.00011999,2]
[395018914,1764340232004,-194.7957889,0.00011999,2]
[395018916,1764340232013,-500.0,0.00011999,2]
[395018918,1764340232021,-467.33984537,0.00011999,2]
[395018920,1764340232030,-500.0,0.00011999,2]
[395018922,1764340232039,-500.0,0.00011999,2]
[395018924,1764340232048,-441.19460792,0.00011999,2]
[395018926,1764340232062,-500.0,0.00011999,2]
[395018928,1764340232072,-1000.95144453,0.00012,2]
[395018930,1764340232081,-164.66666666,0.00012012,2]
[395018932,1764340232091,-151.0,0.000121,2]
[395018934,1764340232101,-151.0,0.000121,2]
[395018936,1764340232110,-194.72792766,0.00012108,2]
[395018937,1764340232120,-500.0,0.00012109,2]
[395018938,1764340232129,-500.0,0.00012109,2]
[395018939,1764340232138,-500.0,0.00012109,2]
[395018940,1764340232148,-500.0,0.00012109,2]
[395018941,1764340232157,-500.0,0.00012109,2]
[395018942,1764340232166,-500.0,0.00012109,2]
[395018943,1764340232175,-500.0,0.00012109,2]
[395018944,1764340232184,-500.0,0.00012109,2]
[395018945,1764340232194,-500.0,0.00012109,2]
[395018946,1764340232203,-500.0,0.00012109,2]
[395018947,1764340232212,-500.0,0.00012109,2]
[395018948,1764340232221,-500.0,0.00012109,2]
[395018949,1764340232230,-500.0,0.00012109,2]
[395018950,1764340232240,-500.0,0.00012109,2]
[395018951,1764340232250,-500.0,0.00012109,2]
[395018952,1764340232259,-500.0,0.00012109,2]
[395018953,1764340232268,-449.36494947,0.00012109,2]
[395018954,1764340232278,-500.0,0.00012109,2]
[395018955,1764340232287,-500.0,0.00012109,2]
[395018957,1764340232296,-500.0,0.00012109,2]
[395018959,1764340232305,-500.0,0.00012109,2]
[395018961,1764340232319,-500.0,0.00012109,2]
[395018963,1764340232328,-500.0,0.00012109,2]
[395018965,1764340232338,-500.0,0.00012109,2]
[395018967,1764340232347,-500.0,0.00012109,2]
[395018969,1764340232357,-500.0,0.00012109,2]
[395018971,1764340232366,-500.0,0.00012109,2]
[395018973,1764340232376,-519.36663939,0.00012109,2]
[395018975,1764340232386,-500.0,0.00012109,2]
[395018977,1764340232395,-665.62571046,0.0001211,2]
[395018979,1764340232405,-665.62571046,0.0001211,2]
[395018981,1764340232414,-665.62571046,0.0001211,2]
[395018983,1764340232423,-665.62571046,0.0001211,2]
[395018985,1764340232433,-665.62571046,0.0001211,2]
[395018987,1764340232443,-665.62571046,0.0001211,2]
[395018989,1764340232452,-665.62571046,0.0001211,2]
[395018991,1764340232461,-665.62571046,0.0001211,2]
[395018993,1764340232471,-665.62571046,0.0001211,2]
[395018995,1764340232480,-665.62571046,0.0001211,2]
[395018997,1764340232490,-665.62571046,0.0001211,2]
[395018999,1764340232500,-665.62571046,0.0001211,2]
[395019001,1764340232509,-665.62571046,0.0001211,2]
[395019003,1764340232519,-665.62571046,0.0001211,2]
[395019005,1764340232528,-665.62571046,0.0001211,2]
[395019006,1764340232537,-564.82805821,0.0001211,2]
[395019008,1764340232773,-100.79765225,0.0001211,2]
[395019009,1764340232783,-518.67111367,0.0001211,2]
[395019125,1764340239973,-837.20734335,0.00011636,2]
[395019126,1764340240092,-46310.42918398,0.00011636,2]
[395019228,1764340243703,-277.78688288,0.0001152,2]
[395019229,1764340243716,-418.93857618,0.0001152,2]
[395019230,1764340243727,-1096.40019257,0.0001152,2]
[395019233,1764340243769,-1059.23782104,0.0001152,2]
[395019235,1764340243779,-834.95968171,0.00011636,2]
[395019258,1764340246228,-2017.40379096,0.00011636,2]
[395019259,1764340246242,-6458.78857463,0.0001201,2]
[395019260,1764340246253,-396452.59896279,0.0001201,2]
[395019261,1764340246263,-146.95459679,0.0001211,2]
[395019262,1764340246273,-665.62571046,0.0001211,2]
[395019263,1764340246282,-665.62571046,0.0001211,2]
[395019264,1764340246292,-665.62571046,0.0001211,2]
[395019265,1764340246304,-665.62571046,0.0001211,2]
[395019266,1764340246314,-665.62571046,0.0001211,2]
[395019267,1764340246326,-665.62571046,0.0001211,2]
[395019268,1764340246338,-665.62571046,0.0001211,2]
[395019269,1764340246347,-665.62571046,0.0001211,2]
[395019270,1764340246357,-665.62571046,0.0001211,2]
[395019271,1764340246367,-665.62571046,0.0001211,2]
[395019272,1764340246376,-665.62571046,0.0001211,2]
[395019273,1764340246386,-665.62571046,0.0001211,2]
[395019274,1764340246396,-665.62571046,0.0001211,2]
[395019275,1764340246406,-665.62571046,0.0001211,2]
[395019276,1764340246415,-665.62571046,0.0001211,2]
[395019277,1764340246425,-665.62571046,0.0001211,2]
[395019278,1764340246435,-665.62571046,0.0001211,2]
[395019279,1764340246444,-665.62571046,0.0001211,2]
[395019280,1764340246453,-665.62571046,0.0001211,2]
[395019281,1764340246462,-665.62571046,0.0001211,2]
[395019282,1764340246472,-665.62571046,0.0001211,2]
[395019283,1764340246482,-665.62571046,0.0001211,2]
[395019284,1764340246491,-665.62571046,0.0001211,2]
[395019285,1764340246500,-665.62571046,0.0001211,2]
[395019286,1764340246510,-665.62571046,0.0001211,2]
[395019287,1764340246519,-665.62571046,0.0001211,2]
[395019288,1764340246528,-665.62571046,0.0001211,2]
[395019289,1764340246538,-665.62571046,0.0001211,2]
[395019290,1764340246548,-665.62571046,0.0001211,2]
[395019291,1764340246557,-665.62571046,0.0001211,2]
[395019292,1764340246569,-665.62571046,0.0001211,2]
[395019293,1764340246579,-657.50832376,0.0001211,2]
[395019294,1764340246588,-657.50832376,0.0001211,2]
[395019295,1764340246598,-657.50832376,0.0001211,2]
[395019296,1764340246607,-657.50832376,0.0001211,2]
[395019297,1764340246617,-657.50832376,0.0001211,2]
[395019298,1764340246627,-657.50832376,0.0001211,2]
[395019299,1764340246636,-657.50832376,0.0001211,2]
[395019300,1764340246646,-657.50832376,0.0001211,2]
[395019301,1764340246660,-657.50832376,0.0001211,2]
[395019302,1764340246669,-657.50832376,0.0001211,2]
[395019303,1764340246679,-657.50832376,0.0001211,2]
[395019304,1764340246688,-657.50832376,0.0001211,2]
[395019305,1764340246701,-657.50832376,0.0001211,2]
[395019306,1764340246710,-657.50832376,0.0001211,2]
[395019307,1764340246720,-657.50832376,0.0001211,2]
[395019308,1764340246730,-657.50832376,0.0001211,2]
[395019309,1764340246741,-657.50832376,0.0001211,2]
[395019310,1764340246756,-657.50832376,0.0001211,2]
[395019311,1764340246767,-657.50832376,0.0001211,2]
[395019312,1764340246778,-657.50832376,0.0001211,2]
[395019313,1764340246789,-657.50832376,0.0001211,2]
[395019314,1764340246806,-657.50832376,0.0001211,2]
[395019315,1764340246820,-657.50832376,0.0001211,2]
[395019316,1764340246838,-657.50832376,0.0001211,2]
[395019317,1764340246850,-657.50832376,0.0001211,2]
[395019318,1764340246861,-657.50832376,0.0001211,2]
[395019319,1764340246872,-657.50832376,0.0001211,2]
[395019320,1764340246883,-642.16646286,0.0001211,2]
[395019321,1764340246895,-642.16646286,0.0001211,2]
[395019322,1764340246909,-642.16646286,0.0001211,2]
[395019323,1764340246920,-642.16646286,0.0001211,2]
[395019324,1764340246930,-642.16646286,0.0001211,2]
[395019325,1764340246941,-642.16646286,0.0001211,2]
[395019326,1764340246951,-642.16646286,0.0001211,2]
[395019327,1764340246962,-642.16646286,0.0001211,2]
[395019328,1764340246972,-642.16646286,0.0001211,2]
[395019329,1764340246983,-642.16646286,0.0001211,2]
[395019330,1764340246994,-642.16646286,0.0001211,2]
[395019331,1764340247005,-642.16646286,0.0001211,2]
[395019332,1764340247015,-642.16646286,0.0001211,2]
[395019333,1764340247026,-642.16646286,0.0001211,2]
[395019334,1764340247036,-642.16646286,0.0001211,2]
[395019335,1764340247046,-167.06,0.00012111,2]
[395019336,1764340247056,-500.0,0.00012114,2]
[395019337,1764340247066,-500.51784347,0.000122,2]
[395019338,1764340247082,-500.0,0.000122,2]
[395019339,1764340247093,-500.0,0.000122,2]
[395019340,1764340247103,-500.0,0.000122,2]
[395019341,1764340247115,-297.02729361,0.000122,2]
[395019342,1764340247125,-500.3601762,0.000122,2]
[395019343,1764340247135,-500.49398478,0.000122,2]
[395019344,1764340247145,-500.0,0.000122,2]
[395019345,1764340247155,-506.57002939,0.000122,2]
[395019346,1764340247165,-500.0,0.000122,2]
[395019347,1764340247175,-500.76749655,0.000122,2]
[395019348,1764340247184,-500.0,0.000122,2]
[395019349,1764340247194,-500.0,0.000122,2]
[395019350,1764340247204,-500.0,0.000122,2]
[395019351,1764340247214,-500.0,0.000122,2]
[395019352,1764340247224,-500.0,0.000122,2]
[395019353,1764340247234,-500.0,0.000122,2]
[395019354,1764340247244,-500.0,0.000122,2]
[395019355,1764340247253,-500.0,0.000122,2]
[395019356,1764340247263,-500.0,0.000122,2]
[395019357,1764340247273,-500.0,0.000122,2]
[395019358,1764340247283,-500.0,0.000122,2]
[395019359,1764340247293,-500.0,0.000122,2]
[395019360,1764340247302,-500.0,0.000122,2]
[395019361,1764340247313,-500.0,0.000122,2]
[395019362,1764340247328,-414.0,0.00012213,2]
[395019363,1764340247338,-1006.82,0.00012329,2]
[395019364,1764340247348,-839.01,0.00012329,2]
[395019365,1764340247358,-699.18,0.00012329,2]
[395019366,1764340247367,-582.65,0.00012329,2]
[395019367,1764340247377,-485.54,0.00012329,2]
[395019368,1764340247387,-404.62,0.00012329,2]
[395019369,1764340247397,-337.18,0.00012329,2]
[395019370,1764340247407,-280.98,0.00012329,2]
[395019371,1764340247416,-234.15,0.00012329,2]
[395019372,1764340247426,-195.13,0.00012329,2]
[395019373,1764340247436,-162.61,0.00012329,2]
[395019374,1764340247448,-813.05,0.00012329,2]
[395019375,1764340247459,-167.06324807,0.00012385,2]
[395019376,1764340247469,-500.0,0.00012388,2]
[395019377,1764340247479,-1832.99106275,0.000125,2]
[395019378,1764340247489,-501.82859294,0.00012635,2]
[395019379,1764340247499,-201.93286099,0.00012656,2]
[395019380,1764340247509,-398.87149065,0.00012662,2]
[395019381,1764340247520,-151.0,0.000127,2]
[395019382,1764340247530,-1000.0,0.00012748,2]
[395019383,1764340247540,-1000.0,0.00012748,2]
[395019384,1764340247551,-502.48094318,0.00012748,2]
[395019385,1764340247560,-507.98101226,0.00012748,2]
[395019386,1764340247572,-1000.0,0.00012748,2]
[395019387,1764340247581,-1000.0,0.00012748,2]
[395019388,1764340247591,-1000.0,0.00012748,2]
[395019389,1764340247600,-1000.0,0.00012748,2]
[395019390,1764340247610,-1000.0,0.00012748,2]
[395019391,1764340247620,-1000.86400021,0.00012748,2]
[395019392,1764340247630,-1000.0,0.00012748,2]
[395019393,1764340247640,-1000.0,0.00012748,2]
[395019394,1764340247651,-502.9249721,0.00012748,2]
[395019395,1764340247666,-1000.0,0.00012748,2]
[395019396,1764340247676,-501.72280862,0.00012748,2]
[395019397,1764340247685,-1119.90072273,0.00012748,2]
[395019398,1764340247696,-1000.0,0.00012748,2]
[395019399,1764340247706,-151.0,0.000128,2]
[395019400,1764340247716,-151.0,0.000128,2]
[395019401,1764340247725,-204.0,0.00012863,2]
[395019402,1764340247736,-151.0,0.000129,2]
[395019403,1764340247747,-1138.40643144,0.000129,2]
[395019404,1764340247756,-540.77734106,0.00012911,2]
[395019405,1764340247766,-1662.7972371,0.00013117,2]
[395019406,1764340247776,-209.40437684,0.00013204,2]
[395019407,1764340247785,-356.06682355,0.00013296,2]
[395019408,1764340247802,-1223.67257579,0.00013296,2]
[395019409,1764340247815,-1500.0,0.00013296,2]
[395019410,1764340247828,-1500.0,0.00013296,2]
[395019411,1764340247837,-1500.0,0.00013296,2]
[395019412,1764340247847,-1500.0,0.00013296,2]
[395019413,1764340247857,-1534.17663547,0.00013296,2]
[395019414,1764340247867,-1003.93025183,0.00013296,2]
[395019415,1764340247876,-1119.68344413,0.00013296,2]
[395019416,1764340247886,-1500.0,0.00013296,2]
[395019417,1764340247896,-151.0,0.000134,2]
[395019418,1764340247906,-371.0202138,0.00013447,2]
[395019419,1764340247916,-151.0,0.000135,2]
[395019420,1764340247926,-151.0,0.000135,2]
[395019421,1764340247936,-1138.4064314,0.00013523,2]
[395019422,1764340247946,-151.0,0.000136,2]
[395019423,1764340247956,-150.52399161,0.00013698,2]
[395019424,1764340247965,-1320.8,0.00013698,2]
[395019425,1764340247975,-1320.8,0.00013698,2]
[395019426,1764340247984,-1320.8,0.00013698,2]
[395019427,1764340247994,-1320.8,0.00013698,2]
[395019428,1764340248373,-1320.8,0.00013698,2]
[395019429,1764340248384,-1320.8,0.00013698,2]
[395019430,1764340248394,-1320.8,0.00013698,2]
[395019431,1764340248403,-1320.8,0.00013698,2]
[395019432,1764340248412,-1320.8,0.00013698,2]
[395019433,1764340248422,-1320.8,0.00013698,2]
[395019434,1764340248431,-1320.8,0.00013698,2]
[395019435,1764340248440,-1320.8,0.00013698,2]
[395019436,1764340248449,-1320.8,0.00013698,2]
[395019437,1764340248459,-1320.8,0.00013698,2]
[395019438,1764340248468,-1320.8,0.00013698,2]
[395019439,1764340248477,-1320.8,0.00013698,2]
[395019440,1764340248487,-1320.8,0.00013698,2]
[395019441,1764340248496,-1320.8,0.00013698,2]
[395019442,1764340248510,-1320.8,0.00013698,2]
[395019443,1764340248520,-1320.8,0.00013698,2]
[395019444,1764340248530,-1320.8,0.00013698,2]
[395019445,1764340248540,-1320.8,0.00013698,2]
[395019446,1764340248549,-1320.8,0.00013698,2]
[395019447,1764340248559,-1320.80391919,0.00013698,2]
[395019448,1764340248570,-1646.86798154,0.00013699,2]
[395019449,1764340248580,-1000.0,0.00013699,2]
[395019450,1764340248589,-750.0,0.00013699,2]
[395019451,1764340248599,-500.0,0.00013699,2]
[395019452,1764340248608,-205.33244124,0.00013699,2]
[395019453,1764340248618,-151.0,0.00013699,2]
[395019454,1764340248628,-500.0,0.00013699,2]
[395019455,1764340248637,-151.0,0.00013699,2]
[395019456,1764340248647,-151.0,0.00013699,2]
[395019457,1764340248659,-151.0,0.00013699,2]
[395019458,1764340248669,-151.0,0.00013699,2]
[395019459,1764340248679,-152.14882316,0.00013699,2]
[395019460,1764340248690,-151.32374515,0.00013699,2]
[395019461,1764340248700,-151.51925938,0.00013699,2]
[395019462,1764340248709,-151.0,0.00013699,2]
[395019463,1764340248719,-151.0,0.00013699,2]
[395019464,1764340248729,-160.0,0.00013699,2]
[395019465,1764340248741,-878.7852,0.00013699,2]
[395019466,1764340248751,-217.15233878,0.00013752,2]
[395019467,1764340248761,-151.0,0.00013836,2]
[395019468,1764340248771,-500.0,0.00013836,2]
[395019469,1764340248780,-151.0,0.00013836,2]
[395019470,1764340248790,-230.24779211,0.00013836,2]
[395019471,1764340248799,-151.0,0.00013836,2]
[395019472,1764340248809,-151.0,0.00013836,2]
[395019473,1764340248819,-200.10393962,0.00013836,2]
[395019474,1764340248833,-151.0,0.00013836,2]
[395019475,1764340248843,-1235.65753975,0.00013844,2]
[395019476,1764340248853,-2000.0,0.00013844,2]
[395019477,1764340248863,-2000.0,0.00013844,2]
[395019478,1764340248873,-2010.8741328,0.00013844,2]
[395019479,1764340248883,-2000.0,0.00013844,2]
[395019480,1764340248893,-500.0,0.00013973,2]
[395019481,1764340248903,-283.99019839,0.00013973,2]
[395019482,1764340248913,-351.34211215,0.00013973,2]
[395019483,1764340248922,-220.65947427,0.00013973,2]
[395019484,1764340248932,-200.80751241,0.00013973,2]
[395019485,1764340248942,-200.86632771,0.00013973,2]
[395019486,1764340248952,-204.26607949,0.00013973,2]
[395019487,1764340248961,-151.0,0.00014,2]
[395019488,1764340248971,-716.33149903,0.00014125,2]
[395019489,1764340248981,-151.0,0.000142,2]
[395019490,1764340248991,-151.0,0.000142,2]
[395019491,1764340249000,-541.3181184,0.00014246,2]
[395019492,1764340249010,-500.0,0.00014247,2]
[395019493,1764340249019,-260.0,0.00014247,2]
[395019494,1764340249028,-225.18697532,0.000143,2]
[395019495,1764340249037,-151.0,0.000143,2]
[395019496,1764340249047,-2500.0,0.00014392,2]
[395019497,1764340249056,-2481.26838956,0.00014392,2]
[395019498,1764340249066,-1402.69336918,0.00014392,2]
[395019499,1764340249078,-264.360234,0.00014483,2]
[395019500,1764340249088,-500.0,0.00014521,2]
[395019501,1764340249098,-500.0,0.00014602,2]
[395019502,1764340249107,-250.0,0.00014619,2]
[395019503,1764340249117,-500.0,0.00014664,2]
[395019504,1764340249126,-151.0,0.000147,2]
[395019505,1764340249136,-500.0,0.00014756,2]
[395019506,1764340249145,-500.0,0.00014793,2]
[395019507,1764340249155,-500.0,0.00014795,2]
[395019508,1764340249164,-360.0,0.00014795,2]
[395019509,1764340249173,-999.0,0.00014827,2]
[395019510,1764340249182,-500.0,0.00014843,2]
[395019511,1764340249195,-233.51889341,0.00014848,2]
[395019512,1764340249204,-231.0,0.00014863,2]
[395019513,1764340249214,-151.0,0.000149,2]
[395019514,1764340249224,-151.0,0.000149,2]
[395019515,1764340249234,-503.40721938,0.0001494,2]
[395019516,1764340249243,-151.0,0.00015,2]
[395019517,1764340249254,-428.17693612,0.00015,2]
[395019518,1764340249264,-500.0,0.00015068,2]
[395019519,1764340249274,-195.19681,0.00015068,2]
[395019520,1764340249283,-1138.4064314,0.00015133,2]
[395019521,1764340249293,-500.0,0.00015176,2]
[395019522,1764340249303,-388.253,0.00015213,2]
[395019523,1764340249312,-151.0,0.000153,2]
[395019524,1764340249323,-460.0,0.00015342,2]
[395019525,1764340249335,-500.0,0.00015342,2]
[395019526,1764340249345,-500.0,0.00015351,2]
[395019527,1764340249355,-242.15909246,0.00015396,2]
[395019528,1764340249364,-153.938257,0.00015488,2]
[395019529,1764340249374,-151.0,0.00015488,2]
[395019530,1764340249383,-151.0,0.00015488,2]
[395019531,1764340249392,-151.0,0.00015488,2]
[395019532,1764340249403,-288.217154,0.00015488,2]
[395019533,1764340249413,-288.217154,0.00015488,2]
[395019534,1764340249424,-288.217154,0.00015488,2]
[395019535,1764340249434,-288.217154,0.00015488,2]
[395019536,1764340249444,-1294.744509,0.00015488,2]
[395019537,1764340249454,-1294.744509,0.00015488,2]